fUST/lending_fUST_20250723
["ID","MTS","AMOUNT","RATE_DAILY","PERIOD"]
[374381948,1753283453075,-154.53974,0.000248,7]
[374381949,1753283453193,-370.186313,0.000248,7]
[374381950,1753283453203,-151.0,0.000248,7]
[374381951,1753283453213,-500.0,0.00024801,2]
[374381952,1753283453222,-272.02685,0.0002483,7]
[374381953,1753283453231,-272.02685,0.0002483,7]
[374381954,1753283453241,-1300.66390324,0.00024849,2]
[374381955,1753283453250,-500.0,0.00024873,2]
[374381956,1753283453259,-272.02685,0.00024884,10]
[374381957,1753283453268,-1315.9189683,0.00024889,11]
[374381958,1753283453277,-160.31443999,0.00024899,2]
[374381959,1753283453287,-200.0,0.00024899,2]
[374381960,1753283453297,-3148.58172746,0.000249,2]
[374381961,1753283453306,-151.0,0.000249,7]
[374381962,1753283453316,-1140.417002,0.000249,7]
[374381964,1753283453326,-1140.417002,0.000249,7]
[374381966,1753283453335,-151.611884,0.000249,7]
[374381968,1753283453345,-195.186578,0.000249,7]
[374381970,1753283453355,-195.186578,0.000249,7]
[374381972,1753283453368,-151.0,0.000249,7]
[374381974,1753283453380,-257.26374,0.000249,7]
[374381976,1753283453389,-151.0,0.000249,7]
[374381978,1753283453398,-151.0,0.000249,7]
[374381980,1753283453407,-151.0,0.000249,7]
[374381982,1753283453420,-151.0,0.000249,7]
[374381984,1753283453429,-151.0,0.000249,7]
[374381986,1753283453438,-151.0,0.000249,7]
[374381988,1753283453448,-151.0,0.000249,7]
[374381990,1753283453457,-151.0,0.000249,7]
[374381992,1753283453466,-151.0,0.000249,7]
[374381994,1753283453476,-151.0,0.000249,7]
[374381996,1753283453485,-285.623926,0.000249,7]
[374381998,1753283453495,-151.0,0.000249,7]
[374382000,1753283453504,-151.0,0.000249,7]
[374382002,1753283453514,-151.0,0.000249,7]
[374382004,1753283453524,-151.0,0.000249,7]
[374382006,1753283453534,-288.539252,0.000249,7]
[374382008,1753283453543,-288.539252,0.000249,7]
[374382010,1753283453552,-151.0,0.000249,7]
[374382012,1753283453561,-151.0,0.000249,7]
[374382014,1753283453571,-151.0,0.000249,7]
[374382016,1753283453580,-151.0,0.000249,7]
[374382018,1753283453590,-151.0,0.000249,7]
[374382020,1753283453599,-151.0,0.000249,7]
[374382022,1753283453608,-484.047466,0.000249,7]
[374382024,1753283453618,-151.0,0.000249,7]
[374382026,1753283453627,-484.047466,0.000249,7]
[374382028,1753283453637,-151.0,0.000249,7]
[374382030,1753283453646,-161.214973,0.000249,7]
[374382032,1753283453655,-151.0,0.000249,7]
[374382034,1753283453664,-279.904771,0.000249,7]
[374382036,1753283453673,-159.186887,0.000249,7]
[374382038,1753283453682,-279.904771,0.000249,7]
[374382040,1753283453691,-159.186887,0.000249,7]
[374382042,1753283453700,-631.5096,0.000249,7]
[374382044,1753283453709,-631.5096,0.000249,7]
[374382045,1753283453717,-426.607169,0.000249,7]
[374382047,1753283453727,-426.607169,0.000249,7]
[374382049,1753283453737,-151.0,0.000249,7]
[374382051,1753283453746,-151.0,0.000249,7]
[374382053,1753283453755,-151.254061,0.000249,7]
[374382055,1753283453763,-238.963048,0.000249,7]
[374382057,1753283453773,-238.963048,0.000249,7]
[374382059,1753283453782,-151.0,0.000249,7]
[374382061,1753283453791,-242.654576,0.000249,7]
[374382063,1753283453800,-151.0,0.000249,7]
[374382065,1753283453810,-151.0,0.000249,7]
[374382067,1753283453819,-151.0,0.000249,7]
[374382069,1753283453830,-151.0,0.000249,7]
[374382071,1753283453839,-180.05127002,0.000249,2]
[374382073,1753283453848,-1000.0,0.000249,5]
[374382075,1753283453857,-372.691336,0.000249,7]
[374382077,1753283453866,-372.691336,0.000249,7]
[374382079,1753283453876,-151.0,0.000249,2]
[374382081,1753283453885,-151.0,0.000249,2]
[374382083,1753283453895,-151.0,0.000249,7]
[374382085,1753283453904,-151.0,0.000249,7]
[374382087,1753283453914,-161.92566,0.000249,7]
[374382089,1753283453924,-161.92566,0.000249,7]
[374382091,1753283453933,-2937.186692,0.000249,7]
[374382093,1753283453942,-2937.186692,0.000249,7]
[374382095,1753283453952,-1173.891373,0.000249,7]
[374382097,1753283453962,-1173.891373,0.000249,7]
[374382099,1753283453971,-934.545767,0.000249,7]
[374382101,1753283453980,-934.545767,0.000249,7]
[374382103,1753283453990,-64605.06347121,0.000249,2]
[374382119,1753283454141,-567.95000424,0.000249,2]
[374382136,1753283454302,-319.0391,0.00019452,2]
[374382140,1753283454326,-140.9609,0.00019452,2]
[374382142,1753283454339,-248.22134421,0.00019726,2]
[374382151,1753283454423,-211.77865579,0.00019726,2]
[374382154,1753283454437,-460.0,0.0002,2]
[374382156,1753283454451,-460.0,0.00020273,2]
[374382159,1753283454465,-460.0,0.00020547,2]
[374382161,1753283454480,-1653.30440934,0.00023147,2]
[374382164,1753283454494,-3432.7107726,0.00023381,2]
[374382166,1753283454509,-3432.7107726,0.00023656,2]
[374382169,1753283454520,-3432.7107726,0.00024021,2]
[374382171,1753283454531,-3432.7107726,0.00024339,2]
[374382173,1753283454542,-891.31,0.00024383,2]
[374382175,1753283454556,-3432.710773,0.0002448,2]
[374382178,1753283454570,-891.31,0.00024657,2]
[374382180,1753283454583,-158623.74307139,0.000249,2]
[374385245,1753284068377,456.426376,0.00013699,2]
[374385248,1753284331105,-4398.70307177,0.00017973,2]
[374385249,1753284333083,-1076.91656923,0.00017973,2]
[374385250,1753284333106,-181.045047,0.00018144,2]
[374385251,1753284333129,-186.122067,0.00018162,2]
[374385252,1753284333155,-138.72963732,0.00018786,2]
[374385254,1753284447161,-150.0,0.00018797,2]
[374385255,1753284447183,-150.0,0.000189,2]
[374385256,1753284447206,-1213.09,0.00018968,3]
[374385257,1753284447229,-492.77488831,0.00018968,3]
[374385258,1753284450097,-113.76511169,0.00018968,3]
[374385259,1753284450120,-303.27,0.00018968,3]
[374385260,1753284450142,-303.27,0.00018968,3]
[374385261,1753284450163,-108.40714776,0.00018977,2]
[374385262,1753284451098,-169.48136937,0.00018977,2]
[374385282,1753284559096,-300.0,0.00018976,2]
[374385283,1753284559118,-2894.86152856,0.00018977,2]
[374385285,1753284572138,-181.57515144,0.00018977,2]
[374385323,1753284633016,-150.0,0.00018883,2]
[374385324,1753284633027,-300.0,0.00018977,2]
[374385325,1753284633037,-191.88174152,0.00018977,2]
[374385326,1753284633047,-500.0,0.00018977,2]
[374385327,1753284633057,-500.0,0.00018977,2]
[374385328,1753284633067,-373.31275559,0.00018977,2]
[374385329,1753284633077,-2043.3961896,0.00018978,2]
[374385375,1753284638209,-240534.3535362,0.00018978,2]
[374385377,1753284638218,-1828.01757662,0.00019078,2]
[374385379,1753284638228,-1339.59858968,0.00019078,2]
[374385381,1753284638237,-500.0,0.00019173,2]
[374385383,1753284638247,-500.0,0.00019173,2]
[374385385,1753284638256,-460.0,0.00019178,2]
[374385387,1753284638266,-460.0,0.00019178,2]
[374385389,1753284638275,-460.0,0.00019178,2]
[374385391,1753284638285,-460.0,0.00019178,2]
[374385393,1753284638294,-460.0,0.00019178,2]
[374385395,1753284638304,-460.0,0.00019178,2]
[374385397,1753284638313,-460.0,0.00019178,2]
[374385399,1753284638323,-460.0,0.00019178,2]
[374385401,1753284638332,-460.0,0.00019178,2]
[374385402,1753284638341,-460.0,0.00019178,2]
[374385405,1753284638351,-460.0,0.00019178,2]
[374385406,1753284638360,-460.0,0.00019178,2]
[374385408,1753284638373,-460.0,0.00019178,2]
[374385412,1753284638382,-460.0,0.00019178,2]
[374385414,1753284638392,-178.08,0.00019178,2]
[374385415,1753284638402,-460.0,0.00019178,2]
[374385417,1753284638412,-460.0,0.00019178,2]
[374385420,1753284638421,-460.0,0.00019178,2]
[374385421,1753284638431,-291.7981558,0.00019178,2]
[374385423,1753284638440,-430.27128955,0.00019178,2]
[374385426,1753284638450,-460.0,0.00019178,2]
[374385427,1753284638459,-460.0,0.00019178,2]
[374385429,1753284638468,-599.43,0.00019178,2]
[374385431,1753284638477,-460.0,0.00019178,2]
[374385433,1753284638489,-460.0,0.00019178,2]
[374385435,1753284638499,-460.0,0.00019178,2]
[374385437,1753284638510,-460.0,0.00019178,2]
[374385439,1753284638520,-460.0,0.00019178,2]
[374385441,1753284638531,-460.0,0.00019178,2]
[374385443,1753284638540,-460.0,0.00019178,2]
[374385445,1753284638550,-460.0,0.00019178,2]
[374385448,1753284638563,-460.0,0.00019178,2]
[374385449,1753284638573,-460.0,0.00019178,2]
[374385452,1753284638584,-460.0,0.00019178,2]
[374385454,1753284638593,-460.0,0.00019178,2]
[374385455,1753284638603,-460.0,0.00019178,2]
[374385457,1753284638612,-460.0,0.00019178,2]
[374385459,1753284638623,-460.0,0.00019178,2]
[374385461,1753284638633,-460.0,0.00019178,2]
[374385464,1753284638643,-460.0,0.00019178,2]
[374385466,1753284638652,-224.44983537,0.00019178,2]
[374385468,1753284638662,-664.28,0.00019178,2]
[374385469,1753284638671,-361.90577968,0.00019178,2]
[374385471,1753284638682,-460.0,0.00019178,2]
[374385474,1753284638691,-460.0,0.00019178,2]
[374385475,1753284638701,-460.0,0.00019178,2]
[374385477,1753284638711,-458.02911471,0.00019178,2]
[374385480,1753284638721,-460.0,0.00019178,2]
[374385482,1753284638730,-534.43300934,0.00019178,2]
[374385483,1753284638739,-460.0,0.00019178,2]
[374385485,1753284638748,-460.0,0.00019178,2]
[374385487,1753284638758,-460.0,0.00019178,2]
[374385489,1753284638767,-460.0,0.00019178,2]
[374385491,1753284638776,-1670.44,0.00019178,2]
[374385494,1753284638786,-460.0,0.00019178,2]
[374385495,1753284638795,-460.0,0.00019178,2]
[374385497,1753284638805,-460.0,0.00019178,2]
[374385499,1753284638815,-460.0,0.00019178,2]
[374385501,1753284638826,-460.0,0.00019178,2]
[374385503,1753284638835,-561.09862588,0.00019178,2]
[374385505,1753284638845,-460.0,0.00019178,2]
[374385507,1753284638854,-460.0,0.00019178,2]
[374385509,1753284638864,-460.0,0.00019178,2]
[374385511,1753284638878,-594.75,0.00019178,2]
[374385513,1753284638887,-460.0,0.00019178,2]
[374385515,1753284638897,-460.0,0.00019178,2]
[374385517,1753284638907,-7718.72,0.00019178,2]
[374385520,1753284638917,-460.0,0.00019178,2]
[374385521,1753284638927,-460.0,0.00019178,2]
[374385524,1753284638936,-460.0,0.00019178,2]
[374385526,1753284638946,-460.0,0.00019178,2]
[374385528,1753284638956,-2108.24,0.00019178,2]
[374385530,1753284638966,-460.0,0.00019178,2]
[374385531,1753284638975,-464.86382537,0.00019178,2]
[374385533,1753284638985,-460.0,0.00019178,2]
[374385535,1753284638994,-460.0,0.00019178,2]
[374385538,1753284639004,-484.49,0.00019178,2]
[374385540,1753284639014,-460.0,0.00019178,2]
[374385541,1753284639024,-460.0,0.00019178,2]
[374385544,1753284639033,-460.0,0.00019178,2]
[374385546,1753284639043,-460.0,0.00019178,2]
[374385547,1753284639052,-460.0,0.00019178,2]
[374385549,1753284639061,-2407.52,0.00019178,2]
[374385552,1753284639071,-460.0,0.00019178,2]
[374385554,1753284639081,-460.0,0.00019178,2]
[374385556,1753284639091,-460.0,0.00019178,2]
[374385558,1753284639103,-460.0,0.00019178,2]
[374385560,1753284639112,-460.0,0.00019178,2]
[374385562,1753284639123,-460.0,0.00019178,2]
[374385564,1753284639132,-460.0,0.00019178,2]
[374385566,1753284639142,-460.0,0.00019178,2]
[374385568,1753284639151,-460.0,0.00019178,2]
[374385570,1753284639160,-2149.86,0.00019178,2]
[374385572,1753284639170,-460.0,0.00019178,2]
[374385574,1753284639180,-460.0,0.00019178,2]
[374385576,1753284639190,-1740.13,0.00019178,2]
[374385578,1753284639200,-460.0,0.00019178,2]
[374385580,1753284639210,-460.0,0.00019178,2]
[374385582,1753284639219,-460.0,0.00019178,2]
[374385583,1753284639229,-460.0,0.00019178,2]
[374385585,1753284639239,-460.0,0.00019178,2]
[374385586,1753284639248,-460.0,0.00019178,2]
[374385588,1753284639258,-460.0,0.00019178,2]
[374385590,1753284639268,-460.0,0.00019178,2]
[374385592,1753284639287,-7095.62,0.00019178,2]
[374385594,1753284639301,-460.0,0.00019178,2]
[374385596,1753284639310,-460.0,0.00019178,2]
[374385598,1753284639320,-460.0,0.00019178,2]
[374385600,1753284639330,-460.0,0.00019178,2]
[374385602,1753284639339,-460.0,0.00019178,2]
[374385604,1753284639349,-460.0,0.00019178,2]
[374385606,1753284639358,-460.0,0.00019178,2]
[374385608,1753284639368,-460.0,0.00019178,2]
[374385610,1753284639380,-460.0,0.00019178,2]
[374385612,1753284639390,-460.0,0.00019178,2]
[374385614,1753284639399,-460.0,0.00019178,2]
[374385616,1753284639409,-620.32,0.00019178,2]
[374385618,1753284639418,-1935.16,0.00019178,2]
[374385620,1753284639428,-460.0,0.00019178,2]
[374385622,1753284639438,-462.06729288,0.00019178,2]
[374385624,1753284639447,-280.33966964,0.00019178,2]
[374385626,1753284639457,-460.0,0.00019178,2]
[374385628,1753284639467,-1222.1,0.00019178,2]
[374385630,1753284639477,-460.0,0.00019178,2]
[374385632,1753284639487,-460.0,0.00019178,2]
[374385634,1753284639499,-460.0,0.00019178,2]
[374385637,1753284639519,-435.82348656,0.00019178,2]
[374385639,1753284639531,-460.0,0.00019178,2]
[374385641,1753284639541,-460.0,0.00019178,2]
[374385643,1753284639551,-1132.02,0.00019178,2]
[374385645,1753284639562,-804.88,0.00019178,2]
[374385647,1753284639572,-460.0,0.00019178,2]
[374385649,1753284639583,-460.0,0.00019178,2]
[374385651,1753284639593,-472.82,0.00019178,2]
[374385653,1753284639603,-2564.0,0.00019178,2]
[374385655,1753284639612,-460.0,0.00019178,2]
[374385657,1753284639626,-489.23,0.00019178,2]
[374385659,1753284639638,-460.0,0.00019178,2]
[374385661,1753284639648,-460.0,0.00019178,2]
[374385663,1753284639657,-460.0,0.00019178,2]
[374385665,1753284639668,-460.0,0.00019178,2]
[374385667,1753284639678,-460.0,0.00019178,2]
[374385670,1753284639687,-200.431247,0.00019178,2]
[374385675,1753284639698,-1230.40635368,0.00019178,2]
[374385678,1753284639707,-460.0,0.00019452,2]
[374385682,1753284639717,-460.0,0.00019452,2]
[374385685,1753284639728,-460.0,0.00019452,2]
[374385688,1753284639738,-460.0,0.00019452,2]
[374385691,1753284639748,-460.0,0.00019452,2]
[374385694,1753284639757,-460.0,0.00019452,2]
[374385697,1753284639767,-596.71647768,0.00019452,2]
[374385699,1753284639776,-460.0,0.00019452,2]
[374385700,1753284639786,-443.17903971,0.00019452,2]
[374385702,1753284639796,-460.0,0.00019452,2]
[374385704,1753284639805,-460.0,0.00019452,2]
[374385708,1753284639815,-460.0,0.00019452,2]
[374385710,1753284639825,-460.0,0.00019452,2]
[374385712,1753284639835,-460.0,0.00019452,2]
[374385714,1753284639845,-460.0,0.00019452,2]
[374385716,1753284639855,-460.0,0.00019452,2]
[374385718,1753284639865,-460.0,0.00019452,2]
[374385720,1753284639881,-460.0,0.00019452,2]
[374385722,1753284639891,-460.0,0.00019452,2]
[374385724,1753284639900,-460.0,0.00019452,2]
[374385726,1753284639910,-460.0,0.00019452,2]
[374385728,1753284639920,-460.0,0.00019452,2]
[374385730,1753284639930,-460.0,0.00019452,2]
[374385732,1753284639939,-460.0,0.00019452,2]
[374385734,1753284639949,-460.0,0.00019452,2]
[374385736,1753284639958,-460.0,0.00019452,2]
[374385738,1753284639968,-460.0,0.00019452,2]
[374385740,1753284639977,-664.28,0.00019452,2]
[374385742,1753284639988,-460.0,0.00019452,2]
[374385744,1753284639997,-460.0,0.00019452,2]
[374385746,1753284640007,-460.0,0.00019452,2]
[374385748,1753284640017,-460.0,0.00019452,2]
[374385750,1753284640027,-460.0,0.00019452,2]
[374385752,1753284640037,-460.0,0.00019452,2]
[374385754,1753284640046,-460.0,0.00019452,2]
[374385756,1753284640057,-1670.44,0.00019452,2]
[374385758,1753284640067,-496.96,0.00019452,2]
[374385760,1753284640076,-460.0,0.00019452,2]
[374385762,1753284640086,-460.0,0.00019452,2]
[374385764,1753284640096,-460.0,0.00019452,2]
[374385766,1753284640106,-460.0,0.00019452,2]
[374385768,1753284640116,-594.75,0.00019452,2]
[374385770,1753284640131,-460.0,0.00019452,2]
[374385772,1753284640141,-460.0,0.00019452,2]
[374385774,1753284640150,-7718.72,0.00019452,2]
[374385776,1753284640160,-460.0,0.00019452,2]
[374385778,1753284640170,-460.0,0.00019452,2]
[374385780,1753284640180,-460.0,0.00019452,2]
[374385782,1753284640190,-460.0,0.00019452,2]
[374385784,1753284640200,-2108.24,0.00019452,2]
[374385786,1753284640210,-460.0,0.00019452,2]
[374385788,1753284640220,-460.0,0.00019452,2]
[374385790,1753284640230,-460.0,0.00019452,2]
[374385792,1753284640240,-460.0,0.00019452,2]
[374385794,1753284640250,-169.13,0.00019452,2]
[374385796,1753284640260,-460.0,0.00019452,2]
[374385798,1753284640269,-460.0,0.00019452,2]
[374385800,1753284640279,-2407.52,0.00019452,2]
[374385802,1753284640288,-460.0,0.00019452,2]
[374385804,1753284640298,-460.0,0.00019452,2]
[374385806,1753284640307,-460.0,0.00019452,2]
[374385808,1753284640317,-460.0,0.00019452,2]
[374385810,1753284640327,-460.0,0.00019452,2]
[374385812,1753284640336,-460.0,0.00019452,2]
[374385814,1753284640346,-460.0,0.00019452,2]
[374385816,1753284640356,-2149.86,0.00019452,2]
[374385818,1753284640366,-460.0,0.00019452,2]
[374385820,1753284640380,-1740.13,0.00019452,2]
[374385822,1753284640390,-460.0,0.00019452,2]
[374385824,1753284640399,-460.0,0.00019452,2]
[374385826,1753284640409,-460.0,0.00019452,2]
[374385828,1753284640418,-460.0,0.00019452,2]
[374385830,1753284640428,-460.0,0.00019452,2]
[374385832,1753284640437,-7095.62,0.00019452,2]
[374385834,1753284640446,-460.0,0.00019452,2]
[374385836,1753284640457,-460.0,0.00019452,2]
[374385838,1753284640467,-460.0,0.00019452,2]
[374385840,1753284640477,-460.0,0.00019452,2]
[374385842,1753284640487,-460.0,0.00019452,2]
[374385844,1753284640501,-460.0,0.00019452,2]
[374385846,1753284640510,-460.0,0.00019452,2]
[374385848,1753284640520,-620.32,0.00019452,2]
[374385850,1753284640530,-1935.16,0.00019452,2]
[374385852,1753284640540,-460.0,0.00019452,2]
[374385854,1753284640550,-1222.1,0.00019452,2]
[374385856,1753284640560,-460.0,0.00019452,2]
[374385858,1753284640571,-460.0,0.00019452,2]
[374385860,1753284640580,-460.0,0.00019452,2]
[374385862,1753284640590,-1132.02,0.00019452,2]
[374385864,1753284640599,-804.88,0.00019452,2]
[374385865,1753284640609,-460.0,0.00019452,2]
[374385867,1753284640618,-472.82,0.00019452,2]
[374385870,1753284640632,-2564.0,0.00019452,2]
[374385872,1753284640642,-460.0,0.00019452,2]
[374385873,1753284640652,-489.23,0.00019452,2]
[374385875,1753284640661,-460.0,0.00019452,2]
[374385877,1753284640670,-460.0,0.00019452,2]
[374385879,1753284640679,-460.0,0.00019452,2]
[374385880,1753284640689,-460.0,0.00019452,2]
[374385881,1753284640698,-460.0,0.00019452,2]
[374385882,1753284640707,-500.0,0.00019682,2]
[374385883,1753284640717,-500.0,0.00019682,2]
[374385884,1753284640727,-1000.0,0.00019721,2]
[374385885,1753284640737,-1000.0,0.00019721,2]
[374385886,1753284640747,-460.0,0.00019726,2]
[374385887,1753284640756,-460.0,0.00019726,2]
[374385888,1753284640766,-460.0,0.00019726,2]
[374385889,1753284640775,-460.0,0.00019726,2]
[374385890,1753284640784,-460.0,0.00019726,2]
[374385891,1753284640794,-460.0,0.00019726,2]
[374385892,1753284640803,-460.0,0.00019726,2]
[374385893,1753284640813,-460.0,0.00019726,2]
[374385894,1753284640823,-460.0,0.00019726,2]
[374385895,1753284640832,-460.0,0.00019726,2]
[374385896,1753284640842,-460.0,0.00019726,2]
[374385898,1753284640852,-366.07535684,0.00019726,2]
[374385900,1753284640861,-460.0,0.00019726,2]
[374385902,1753284640875,-460.0,0.00019726,2]
[374385904,1753284640884,-460.0,0.00019726,2]
[374385906,1753284640893,-605.13145932,0.00019726,2]
[374385908,1753284640902,-460.0,0.00019726,2]
[374385910,1753284640913,-460.0,0.00019726,2]
[374385912,1753284640923,-460.0,0.00019726,2]
[374385914,1753284640932,-460.0,0.00019726,2]
[374385916,1753284640942,-472.11330384,0.00019726,2]
[374385918,1753284640952,-460.0,0.00019726,2]
[374385920,1753284640961,-460.0,0.00019726,2]
[374385922,1753284640971,-460.0,0.00019726,2]
[374385924,1753284640980,-664.28,0.00019726,2]
[374385926,1753284640990,-460.0,0.00019726,2]
[374385928,1753284641000,-460.0,0.00019726,2]
[374385930,1753284641009,-460.0,0.00019726,2]
[374385932,1753284641019,-460.0,0.00019726,2]
[374385934,1753284641028,-460.0,0.00019726,2]
[374385936,1753284641038,-460.0,0.00019726,2]
[374385938,1753284641047,-460.0,0.00019726,2]
[374385940,1753284641056,-1670.44,0.00019726,2]
[374385942,1753284641066,-460.0,0.00019726,2]
[374385944,1753284641075,-460.0,0.00019726,2]
[374385946,1753284641084,-460.0,0.00019726,2]
[374385947,1753284641094,-594.75,0.00019726,2]
[374385950,1753284641103,-460.0,0.00019726,2]
[374385952,1753284641113,-460.0,0.00019726,2]
[374385954,1753284641125,-7718.72,0.00019726,2]
[374385955,1753284641134,-460.0,0.00019726,2]
[374385958,1753284641144,-460.0,0.00019726,2]
[374385959,1753284641154,-460.0,0.00019726,2]
[374385962,1753284641164,-2108.24,0.00019726,2]
[374385964,1753284641174,-460.0,0.00019726,2]
[374385966,1753284641183,-460.0,0.00019726,2]
[374385967,1753284641192,-460.0,0.00019726,2]
[374385970,1753284641202,-460.0,0.00019726,2]
[374385971,1753284641211,-460.0,0.00019726,2]
[374385973,1753284641221,-502.04755247,0.00019726,2]
[374385975,1753284641230,-2407.52,0.00019726,2]
[374385977,1753284641240,-460.0,0.00019726,2]
[374385979,1753284641250,-460.0,0.00019726,2]
[374385981,1753284641259,-460.0,0.00019726,2]
[374385983,1753284641269,-460.0,0.00019726,2]
[374385985,1753284641278,-460.0,0.00019726,2]
[374385987,1753284641287,-460.0,0.00019726,2]
[374385989,1753284641297,-460.0,0.00019726,2]
[374385991,1753284641307,-2149.86,0.00019726,2]
[374385993,1753284641317,-1740.13,0.00019726,2]
[374385995,1753284641326,-460.0,0.00019726,2]
[374385997,1753284641336,-460.0,0.00019726,2]
[374385999,1753284641346,-460.0,0.00019726,2]
[374386001,1753284641356,-460.0,0.00019726,2]
[374386003,1753284641365,-460.0,0.00019726,2]
[374386005,1753284641376,-460.0,0.00019726,2]
[374386007,1753284641385,-460.0,0.00019726,2]
[374386009,1753284641394,-460.0,0.00019726,2]
[374386011,1753284641404,-460.0,0.00019726,2]
[374386013,1753284641412,-460.0,0.00019726,2]
[374386015,1753284641422,-620.32,0.00019726,2]
[374386017,1753284641431,-1935.16,0.00019726,2]
[374386019,1753284641440,-460.0,0.00019726,2]
[374386021,1753284641450,-1222.1,0.00019726,2]
[374386036,1753284641580,-460.0,0.00019726,2]
[374386038,1753284641605,-460.0,0.00019726,2]
[374386040,1753284641614,-460.0,0.00019726,2]
[374386042,1753284641628,-1132.02,0.00019726,2]
[374386044,1753284641638,-804.88,0.00019726,2]
[374386046,1753284641647,-460.0,0.00019726,2]
[374386048,1753284641657,-472.82,0.00019726,2]
[374386050,1753284641666,-2564.0,0.00019726,2]
[374386052,1753284641676,-460.0,0.00019726,2]
[374386054,1753284641685,-489.23,0.00019726,2]
[374386056,1753284641695,-460.0,0.00019726,2]
[374386058,1753284641704,-460.0,0.00019726,2]
[374386060,1753284641713,-460.0,0.00019726,2]
[374386062,1753284641722,-460.0,0.00019726,2]
[374386064,1753284641731,-500.0,0.00019761,2]
[374386066,1753284641741,-500.0,0.00019761,2]
[374386068,1753284641750,-500.0,0.00019761,2]
[374386070,1753284641759,-150.0,0.00019783,2]
[374386072,1753284641768,-460.0,0.0002,2]
[374386074,1753284641777,-460.0,0.0002,2]
[374386075,1753284641786,-151.0,0.0002,3]
[374386077,1753284641795,-460.0,0.0002,2]
[374386079,1753284641805,-460.0,0.0002,2]
[374386081,1753284641814,-460.0,0.0002,2]
[374386084,1753284641824,-460.0,0.0002,2]
[374386086,1753284641834,-460.0,0.0002,2]
[374386087,1753284641843,-460.0,0.0002,2]
[374386089,1753284641852,-460.0,0.0002,2]
[374386091,1753284641862,-460.0,0.0002,2]
[374386093,1753284641872,-460.0,0.0002,2]
[374386095,1753284641881,-460.0,0.0002,2]
[374386097,1753284641891,-460.0,0.0002,2]
[374386099,1753284641900,-460.0,0.0002,2]
[374386101,1753284641909,-460.0,0.0002,2]
[374386103,1753284641919,-460.0,0.0002,2]
[374386105,1753284641927,-460.0,0.0002,2]
[374386107,1753284641937,-460.0,0.0002,2]
[374386109,1753284641946,-664.28,0.0002,2]
[374386111,1753284641955,-494.89,0.0002,2]
[374386113,1753284641964,-460.0,0.0002,2]
[374386115,1753284641974,-460.0,0.0002,2]
[374386117,1753284641983,-460.0,0.0002,2]
[374386119,1753284641992,-460.0,0.0002,2]
[374386121,1753284642001,-460.0,0.0002,2]
[374386123,1753284642011,-460.0,0.0002,2]